fUSD/lending_fUSD_20241125
["ID","MTS","AMOUNT","RATE_DAILY","PERIOD"]
[343230301,1732505451277,-500.0,0.00046575,2]
[343230302,1732505451286,-500.0,0.00046575,2]
[343230303,1732505451296,-523.05278242,0.00046575,2]
[343230304,1732505451306,-535.87858187,0.00046575,2]
[343230305,1732505451315,-500.0,0.00046575,2]
[343230306,1732505451324,-500.0,0.00046575,2]
[343230307,1732505451333,-500.0,0.00046575,2]
[343230308,1732505451343,-500.0,0.00046575,2]
[343230309,1732505451352,-500.0,0.00046575,2]
[343230310,1732505451362,-500.0,0.00046575,2]
[343230311,1732505451371,-391.37810189,0.00046575,2]
[343230312,1732505451380,-500.0,0.00046575,2]
[343230313,1732505451389,-500.0,0.00046575,2]
[343230314,1732505451398,-500.0,0.00046575,2]
[343230315,1732505451407,-500.0,0.00046575,2]
[343230316,1732505451416,-500.0,0.00046575,2]
[343230317,1732505451427,-500.0,0.00046575,2]
[343230318,1732505451436,-444.82462701,0.00046575,2]
[343230319,1732505451445,-500.0,0.00046575,2]
[343230320,1732505451454,-500.0,0.00046575,2]
[343230321,1732505451463,-500.0,0.00046575,2]
[343230322,1732505451472,-500.0,0.00046575,2]
[343230323,1732505451480,-523.75653135,0.00046575,2]
[343230324,1732505451489,-502.43502238,0.00046575,2]
[343230325,1732505451499,-500.0,0.00046575,2]
[343230326,1732505451509,-500.0,0.00046575,2]
[343230327,1732505451518,-500.0,0.00046575,2]
[343230328,1732505451528,-518.1561671,0.00046575,2]
[343230329,1732505451538,-500.0,0.00046575,2]
[343230330,1732505451548,-500.0,0.00046575,2]
[343230331,1732505451557,-532.22560407,0.00046575,2]
[343230332,1732505451567,-506.80911846,0.00046575,2]
[343230333,1732505451576,-500.0,0.00046575,2]
[343230334,1732505451586,-334.54152876,0.00046575,2]
[343230335,1732505451596,-500.0,0.00046575,2]
[343230336,1732505451605,-1047.82,0.00046575,2]
[343230337,1732505451615,-500.0,0.00046575,2]
[343230338,1732505451624,-1047.82,0.00046575,2]
[343230339,1732505451634,-500.23279574,0.00046575,2]
[343230340,1732505451645,-1047.82,0.00046575,2]
[343230341,1732505451654,-500.0,0.00046575,2]
[343230342,1732505451664,-1047.82,0.00046575,2]
[343230343,1732505451674,-500.0,0.00046575,2]
[343230344,1732505451686,-1047.82,0.00046575,2]
[343230345,1732505451695,-500.0,0.00046575,2]
[343230346,1732505451704,-1047.82,0.00046575,2]
[343230347,1732505451714,-500.0,0.00046575,2]
[343230348,1732505451723,-1047.82,0.00046575,2]
[343230349,1732505451732,-500.0,0.00046575,2]
[343230350,1732505451742,-1047.82,0.00046575,2]
[343230351,1732505451751,-558.49446425,0.00046575,2]
[343230352,1732505451761,-1047.82,0.00046575,2]
[343230353,1732505451771,-1047.82,0.00046575,2]
[343230354,1732505451781,-1047.82,0.00046575,2]
[343230355,1732505451790,-1047.82,0.00046575,2]
[343230356,1732505451800,-1047.82,0.00046575,2]
[343230357,1732505451810,-1047.82,0.00046575,2]
[343230358,1732505451821,-1047.82,0.00046575,2]
[343230359,1732505451831,-500.0,0.00046575,2]
[343230360,1732505451841,-1047.82,0.00046575,2]
[343230361,1732505451851,-500.0,0.00046575,2]
[343230362,1732505451861,-1047.82,0.00046575,2]
[343230363,1732505451870,-500.0,0.00046575,2]
[343230364,1732505451881,-1047.82,0.00046575,2]
[343230365,1732505451891,-500.0,0.00046575,2]
[343230366,1732505451901,-1047.82,0.00046575,2]
[343230367,1732505451911,-500.0,0.00046575,2]
[343230368,1732505451921,-1047.82,0.00046575,2]
[343230369,1732505451935,-500.0,0.00046575,2]
[343230370,1732505451946,-620.37349802,0.00046575,2]
[343230371,1732505451956,-1047.82,0.00046575,2]
[343230372,1732505451965,-1047.82,0.00046575,2]
[343230373,1732505451975,-1047.82,0.00046575,2]
[343230374,1732505451985,-1047.94960063,0.00046575,2]
[343230375,1732505451995,-507.41667364,0.00046575,2]
[343230376,1732505452006,-509.20217799,0.00046575,2]
[343230377,1732505452020,-500.0,0.00046575,2]
[343230378,1732505452031,-503.07554285,0.00046575,2]
[343230379,1732505452041,-408.80045774,0.00046575,2]
[343230380,1732505452051,-500.0,0.00046575,2]
[343230381,1732505452062,-506.53198152,0.00046575,2]
[343230382,1732505452072,-500.0,0.00046575,2]
[343230383,1732505452082,-510.3446318,0.00046575,2]
[343230384,1732505452092,-500.0,0.00046575,2]
[343230385,1732505452103,-500.0,0.00046575,2]
[343230386,1732505452114,-334.86831746,0.00046575,2]
[343230387,1732505452124,-512.19048455,0.00046575,2]
[343230388,1732505452134,-500.0,0.00046575,2]
[343230389,1732505452144,-500.0,0.00046575,2]
[343230390,1732505452153,-500.0,0.00046575,2]
[343230391,1732505452163,-500.0,0.00046575,2]
[343230392,1732505452173,-517.03719454,0.00046575,2]
[343230393,1732505452188,-500.0,0.00046575,2]
[343230394,1732505452198,-350.21273842,0.00046575,2]
[343230395,1732505452208,-500.0,0.00046575,2]
[343230396,1732505452218,-500.0,0.00046575,2]
[343230397,1732505452230,-500.0,0.00046575,2]
[343230398,1732505452240,-500.0,0.00046575,2]
[343230399,1732505452250,-500.0,0.00046575,2]
[343230400,1732505452260,-500.0,0.00046575,2]
[343230401,1732505452271,-500.0,0.00046575,2]
[343230402,1732505452280,-500.0,0.00046575,2]
[343230403,1732505452289,-500.0,0.00046575,2]
[343230404,1732505452298,-500.0,0.00046575,2]
[343230405,1732505452308,-500.0,0.00046575,2]
[343230406,1732505452318,-500.0,0.00046575,2]
[343230407,1732505452328,-500.0,0.00046575,2]
[343230408,1732505452337,-500.0,0.00046575,2]
[343230409,1732505452346,-500.0,0.00046575,2]
[343230410,1732505452355,-500.0,0.00046575,2]
[343230411,1732505452365,-500.0,0.00046575,2]
[343230412,1732505452375,-516.35796143,0.00046575,2]
[343230413,1732505452384,-514.23746181,0.00046575,2]
[343230414,1732505452394,-500.0,0.00046575,2]
[343230415,1732505452404,-500.0,0.00046575,2]
[343230416,1732505452413,-500.0,0.00046575,2]
[343230417,1732505452423,-500.0,0.00046575,2]
[343230418,1732505452437,-500.0,0.00046575,2]
[343230419,1732505452447,-500.0,0.00046575,2]
[343230420,1732505452456,-500.0,0.00046575,2]
[343230421,1732505452467,-463.4772607,0.00046575,2]
[343230422,1732505452477,-527.32085565,0.00046575,2]
[343230423,1732505452488,-500.0,0.00046575,2]
[343230424,1732505452497,-508.60562155,0.00046575,2]
[343230425,1732505452507,-500.0,0.00046575,2]
[343230426,1732505452516,-523.09404336,0.00046575,2]
[343230427,1732505452526,-500.0,0.00046575,2]
[343230428,1732505452536,-500.0,0.00046575,2]
[343230429,1732505452546,-500.0,0.00046575,2]
[343230430,1732505452556,-516.91447501,0.00046575,2]
[343230431,1732505452566,-500.0,0.00046575,2]
[343230432,1732505452575,-500.0,0.00046575,2]
[343230433,1732505452585,-500.0,0.00046575,2]
[343230434,1732505452595,-511.60280712,0.00046575,2]
[343230435,1732505452605,-500.0,0.00046575,2]
[343230436,1732505452615,-500.0,0.00046575,2]
[343230437,1732505452625,-279.58507557,0.00046575,2]
[343230438,1732505452635,-500.0,0.00046575,2]
[343230439,1732505452645,-500.0,0.00046575,2]
[343230440,1732505452655,-500.0,0.00046575,2]
[343230441,1732505452664,-519.05998328,0.00046575,2]
[343230442,1732505452674,-197.31227457,0.00046575,2]
[343230443,1732505452785,-500.0,0.00046575,2]
[343230444,1732505452796,-500.0,0.00046575,2]
[343230445,1732505452807,-643.4560443,0.00046575,2]
[343230446,1732505452817,-500.0,0.00046575,2]
[343230447,1732505452827,-500.0,0.00046575,2]
[343230448,1732505452836,-500.0,0.00046575,2]
[343230449,1732505452846,-519.65312238,0.00046575,2]
[343230450,1732505452855,-500.0,0.00046575,2]
[343230451,1732505452865,-500.0,0.00046575,2]
[343230452,1732505452875,-500.0,0.00046575,2]
[343230453,1732505452884,-513.13033707,0.00046575,2]
[343230454,1732505452894,-500.0,0.00046575,2]
[343230455,1732505452904,-500.0,0.00046575,2]
[343230456,1732505452914,-519.40776316,0.00046575,2]
[343230457,1732505452924,-150.0,0.00046575,2]
[343230458,1732505452939,-150.0,0.00046575,2]
[343230459,1732505452950,-150.0,0.00046575,2]
[343230460,1732505452960,-155.42126448,0.00046575,2]
[343230461,1732505452970,-500.0,0.00046575,2]
[343230462,1732505452981,-450.68018508,0.00046575,2]
[343230463,1732505452991,-1033.00072874,0.00046575,2]
[343230464,1732505453001,-500.0,0.00046575,2]
[343230465,1732505453015,-500.0,0.00046575,2]
[343230466,1732505453025,-500.0,0.00046575,2]
[343230467,1732505453036,-500.0,0.00046575,2]
[343230468,1732505453046,-500.0,0.00046575,2]
[343230469,1732505453058,-500.0,0.00046575,2]
[343230470,1732505453068,-517.60667027,0.00046575,2]
[343230471,1732505453078,-624.14284254,0.00046575,2]
[343230472,1732505453088,-500.0,0.00046575,2]
[343230473,1732505453098,-500.0,0.00046575,2]
[343230474,1732505453107,-150.96933411,0.00046575,2]
[343230475,1732505453116,-506.69017831,0.00046575,2]
[343230476,1732505453125,-180.88115396,0.00046575,2]
[343230477,1732505453135,-5092.03065322,0.00046575,2]
[343230478,1732505453144,-500.0,0.00046575,2]
[343230479,1732505453154,-500.0,0.00046575,2]
[343230480,1732505453163,-500.0,0.00046575,2]
[343230481,1732505453173,-500.0,0.00046575,2]
[343230482,1732505453184,-500.0,0.00046575,2]
[343230483,1732505453194,-500.0,0.00046575,2]
[343230484,1732505453203,-500.0,0.00046575,2]
[343230485,1732505453213,-500.0,0.00046575,2]
[343230486,1732505453222,-500.0,0.00046575,2]
[343230487,1732505453232,-500.0,0.00046575,2]
[343230488,1732505453241,-500.0,0.00046575,2]
[343230489,1732505453250,-500.0,0.00046575,2]
[343230490,1732505453259,-500.0,0.00046575,2]
[343230491,1732505453269,-500.0,0.00046575,2]
[343230492,1732505453278,-500.0,0.00046575,2]
[343230493,1732505453288,-500.0,0.00046575,2]
[343230494,1732505453297,-500.0,0.00046575,2]
[343230495,1732505453306,-500.0,0.00046575,2]
[343230496,1732505453316,-500.0,0.00046575,2]
[343230497,1732505453326,-500.0,0.00046575,2]
[343230498,1732505453335,-500.0,0.00046575,2]
[343230499,1732505453345,-500.0,0.00046575,2]
[343230500,1732505453355,-500.0,0.00046575,2]
[343230501,1732505453364,-500.0,0.00046575,2]
[343230502,1732505453374,-500.0,0.00046575,2]
[343230503,1732505453384,-528.22572113,0.00046575,2]
[343230504,1732505453393,-544.62451002,0.00046575,2]
[343230505,1732505453402,-520.17436821,0.00046575,2]
[343230506,1732505453412,-493.69629874,0.00046575,2]
[343230507,1732505453422,-500.0,0.00046575,2]
[343230508,1732505453432,-546.47064417,0.00046575,2]
[343230509,1732505453441,-227.97288411,0.00046575,2]
[343230510,1732505453451,-525.96933244,0.00046575,2]
[343230511,1732505453460,-207.53267492,0.00046575,2]
[343230512,1732505453470,-500.0,0.00046575,2]
[343230513,1732505453479,-500.0,0.00046575,2]
[343230514,1732505453488,-500.0,0.00046575,2]
[343230515,1732505453497,-500.0,0.00046575,2]
[343230516,1732505453507,-258.61948628,0.00046575,2]
[343230517,1732505453516,-500.0,0.00046575,2]
[343230518,1732505453525,-500.0,0.00046575,2]
[343230519,1732505453535,-521.56234418,0.00046575,2]
[343230520,1732505453544,-508.44550943,0.00046575,2]
[343230521,1732505453553,-500.0,0.00046575,2]
[343230522,1732505453563,-500.0,0.00046575,2]
[343230523,1732505453572,-516.92642993,0.00046575,2]
[343230524,1732505453581,-503.82270664,0.00046575,2]
[343230525,1732505453591,-500.0,0.00046575,2]
[343230526,1732505453600,-500.0,0.00046575,2]
[343230527,1732505453609,-500.0,0.00046575,2]
[343230528,1732505453619,-500.0,0.00046575,2]
[343230529,1732505453628,-500.0,0.00046575,2]
[343230530,1732505453637,-543.65088145,0.00046575,2]
[343230531,1732505453646,-500.0,0.00046575,2]
[343230532,1732505453655,-642.61726075,0.00046575,2]
[343230533,1732505453665,-504.37763534,0.00046575,2]
[343230534,1732505453674,-500.0,0.00046575,2]
[343230535,1732505453686,-500.0,0.00046575,2]
[343230536,1732505453696,-500.0,0.00046575,2]
[343230537,1732505453705,-500.0,0.00046575,2]
[343230538,1732505453715,-500.0,0.00046575,2]
[343230539,1732505453725,-500.0,0.00046575,2]
[343230540,1732505453734,-500.0,0.00046575,2]
[343230541,1732505453744,-513.47256965,0.00046575,2]
[343230542,1732505453754,-559.26328108,0.00046575,2]
[343230543,1732505453763,-500.0,0.00046575,2]
[343230544,1732505453772,-503.07817164,0.00046575,2]
[343230545,1732505453782,-500.0,0.00046575,2]
[343230546,1732505453791,-178.09802731,0.00046575,2]
[343230547,1732505453800,-485.35232545,0.00046575,2]
[343230548,1732505453810,-495.56834607,0.00046575,2]
[343230549,1732505453819,-561.33370137,0.00046575,2]
[343230550,1732505453828,-500.0,0.00046575,2]
[343230551,1732505453838,-500.0,0.00046575,2]
[343230552,1732505453847,-500.0,0.00046575,2]
[343230553,1732505453856,-528.18520426,0.00046575,2]
[343230554,1732505453866,-520.72377806,0.00046575,2]
[343230555,1732505453875,-328.84306695,0.00046575,2]
[343230556,1732505453884,-500.0,0.00046575,2]
[343230557,1732505453893,-508.03244202,0.00046575,2]
[343230558,1732505453903,-500.0,0.00046575,2]
[343230559,1732505453912,-527.59327727,0.00046575,2]
[343230560,1732505453921,-514.21105033,0.00046575,2]
[343230561,1732505453933,-500.0,0.00046575,2]
[343230562,1732505453942,-500.0,0.00046575,2]
[343230563,1732505453951,-527.48733217,0.00046575,2]
[343230564,1732505453961,-589.37806062,0.00046575,2]
[343230565,1732505453971,-319.85004237,0.00046575,2]
[343230566,1732505453980,-500.0,0.00046575,2]
[343230567,1732505453989,-231.40538868,0.00046575,2]
[343230568,1732505453998,-500.0,0.00046575,2]
[343230569,1732505454008,-400.45324254,0.00046575,2]
[343230570,1732505454022,-500.0,0.00046575,2]
[343230571,1732505454032,-506.53044193,0.00046575,2]
[343230572,1732505454041,-510.35281449,0.00046575,2]
[343230573,1732505454051,-506.60473103,0.00046575,2]
[343230574,1732505454062,-500.0,0.00046575,2]
[343230575,1732505454071,-448.96490752,0.00046575,2]
[343230576,1732505454080,-500.0,0.00046575,2]
[343230577,1732505454089,-500.0,0.00046575,2]
[343230578,1732505454101,-500.0,0.00046575,2]
[343230579,1732505454110,-500.0,0.00046575,2]
[343230580,1732505454119,-500.0,0.00046575,2]
[343230581,1732505454129,-459.75152111,0.00046575,2]
[343230582,1732505454138,-500.0,0.00046575,2]
[343230583,1732505454147,-500.0,0.00046575,2]
[343230584,1732505454157,-500.0,0.00046575,2]
[343230585,1732505454166,-500.0,0.00046575,2]
[343230586,1732505454176,-500.0,0.00046575,2]
[343230587,1732505454189,-500.0,0.00046575,2]
[343230588,1732505454198,-497.50206269,0.00046575,2]
[343230589,1732505454208,-500.0,0.00046575,2]
[343230590,1732505454218,-500.0,0.00046575,2]
[343230591,1732505454228,-500.0,0.00046575,2]
[343230592,1732505454238,-268.93794078,0.00046575,2]
[343230593,1732505454334,-511.24587764,0.00046575,2]
[343230594,1732505454345,-550.39997817,0.00046575,2]
[343230595,1732505454354,-500.0,0.00046575,2]
[343230596,1732505454363,-500.0,0.00046575,2]
[343230597,1732505454373,-557.01628614,0.00046575,2]
[343230598,1732505454382,-500.0,0.00046575,2]
[343230599,1732505454391,-514.9296478,0.00046575,2]
[343230600,1732505454401,-631.73,0.00046575,2]
[343230601,1732505454410,-631.73,0.00046575,2]
[343230602,1732505454419,-500.0,0.00046575,2]
[343230603,1732505454431,-631.73,0.00046575,2]
[343230604,1732505454440,-508.43456602,0.00046575,2]
[343230605,1732505454449,-631.73,0.00046575,2]
[343230606,1732505454459,-500.0,0.00046575,2]
[343230607,1732505454469,-631.73,0.00046575,2]
[343230608,1732505454478,-578.91542728,0.00046575,2]
[343230609,1732505454487,-500.0,0.00046575,2]
[343230610,1732505454497,-631.73,0.00046575,2]
[343230611,1732505454506,-500.0,0.00046575,2]
[343230612,1732505454516,-500.0,0.00046575,2]
[343230613,1732505454525,-631.73,0.00046575,2]
[343230614,1732505454535,-500.0,0.00046575,2]
[343230615,1732505454544,-631.73,0.00046575,2]
[343230616,1732505454554,-500.0,0.00046575,2]
[343230617,1732505454563,-631.73,0.00046575,2]
[343230618,1732505454573,-439.92719071,0.00046575,2]
[343230619,1732505454582,-631.73,0.00046575,2]
[343230620,1732505454591,-631.73,0.00046575,2]
[343230621,1732505454600,-631.73,0.00046575,2]
[343230622,1732505454609,-631.73,0.00046575,2]
[343230623,1732505454619,-631.73,0.00046575,2]
[343230624,1732505454629,-631.73,0.00046575,2]
[343230625,1732505454638,-631.73,0.00046575,2]
[343230626,1732505454648,-502.24008438,0.00046575,2]
[343230627,1732505454657,-631.73,0.00046575,2]
[343230628,1732505454666,-631.73,0.00046575,2]
[343230629,1732505454675,-500.0,0.00046575,2]
[343230630,1732505454687,-631.73,0.00046575,2]
[343230631,1732505454696,-507.88189971,0.00046575,2]
[343230632,1732505454706,-500.0,0.00046575,2]
[343230633,1732505454715,-631.73,0.00046575,2]
[343230634,1732505454725,-500.0,0.00046575,2]
[343230635,1732505454735,-631.73,0.00046575,2]
[343230636,1732505454745,-518.31196718,0.00046575,2]
[343230637,1732505454755,-631.73,0.00046575,2]
[343230638,1732505454765,-631.73,0.00046575,2]
[343230639,1732505454774,-631.86382708,0.00046575,2]
[343230640,1732505454784,-504.23293881,0.00046575,2]
[343230641,1732505454794,-500.0,0.00046575,2]
[343230642,1732505454804,-504.74921333,0.00046575,2]
[343230643,1732505454814,-500.0,0.00046575,2]
[343230644,1732505454824,-500.0,0.00046575,2]
[343230645,1732505454833,-183.37883488,0.00046575,2]
[343230646,1732505454843,-500.0,0.00046575,2]
[343230647,1732505454852,-500.0,0.00046575,2]
[343230648,1732505454862,-503.66225242,0.00046575,2]
[343230649,1732505454871,-588.69733583,0.00046575,2]
[343230650,1732505454881,-500.0,0.00046575,2]
[343230651,1732505454890,-391.29979506,0.00046575,2]
[343230652,1732505454899,-169.246545,0.00046575,14]
[343230653,1732505454909,-503.23787443,0.00046575,2]
[343230654,1732505454919,-500.0,0.00046575,2]
[343230655,1732505454930,-500.0,0.00046575,2]
[343230656,1732505454939,-500.0,0.00046575,2]
[343230657,1732505454948,-500.0,0.00046575,2]
[343230658,1732505454958,-500.0,0.00046575,2]
[343230659,1732505454968,-500.0,0.00046575,2]
[343230660,1732505454977,-500.0,0.00046575,2]
[343230661,1732505454987,-580.25179711,0.00046575,2]
[343230662,1732505454997,-505.9227012,0.00046575,2]
[343230663,1732505455006,-500.0,0.00046575,2]
[343230664,1732505455019,-500.0,0.00046575,2]
[343230665,1732505455029,-500.0,0.00046575,2]
[343230666,1732505455039,-500.0,0.00046575,2]
[343230667,1732505455048,-500.0,0.00046575,2]
[343230668,1732505455059,-500.0,0.00046575,2]
[343230669,1732505455068,-500.0,0.00046575,2]
[343230670,1732505455078,-568.52114251,0.00046575,2]
[343230671,1732505455087,-500.0,0.00046575,2]
[343230672,1732505455097,-500.0,0.00046575,2]
[343230673,1732505455107,-500.0,0.00046575,2]
[343230674,1732505455116,-500.0,0.00046575,2]
[343230675,1732505455126,-501.01890124,0.00046575,2]
[343230676,1732505455135,-505.8243368,0.00046575,2]
[343230677,1732505455146,-244.92293768,0.00046575,2]
[343230678,1732505455158,-503.04715612,0.00046575,2]
[343230679,1732505455167,-504.12198386,0.00046575,2]
[343230680,1732505455176,-506.63766394,0.00046575,2]
[343230681,1732505455187,-506.919453,0.00046575,2]
[343230682,1732505455196,-500.0,0.00046575,2]
[343230683,1732505455206,-509.47906526,0.00046575,2]
[343230684,1732505455215,-500.0,0.00046575,2]
[343230685,1732505455224,-500.0,0.00046575,2]
[343230686,1732505455234,-507.59544414,0.00046575,2]
[343230687,1732505455243,-500.0,0.00046575,2]
[343230688,1732505455254,-581.13901168,0.00046575,2]
[343230689,1732505455266,-500.0,0.00046575,2]
[343230690,1732505455275,-500.0,0.00046575,2]
[343230691,1732505455285,-500.0,0.00046575,2]
[343230692,1732505455294,-500.00000001,0.00046575,2]
[343230693,1732505455303,-500.0,0.00046575,2]
[343230694,1732505455312,-500.0,0.00046575,2]
[343230695,1732505455322,-509.74184937,0.00046575,2]
[343230696,1732505455331,-501.17940692,0.00046575,2]
[343230697,1732505455341,-500.0,0.00046575,2]
[343230698,1732505455351,-500.0,0.00046575,2]
[343230699,1732505455360,-500.0,0.00046575,2]
[343230700,1732505455369,-500.0,0.00046575,2]
[343230701,1732505455379,-500.0,0.00046575,2]
[343230702,1732505455388,-500.0,0.00046575,2]
[343230703,1732505455398,-634.00722681,0.00046575,2]
[343230704,1732505455407,-500.0,0.00046575,2]
[343230705,1732505455417,-500.0,0.00046575,2]
[343230706,1732505455426,-500.0,0.00046575,2]
[343230707,1732505455438,-527.54372186,0.00046575,2]
[343230708,1732505455447,-500.0,0.00046575,2]
[343230709,1732505455456,-538.85823589,0.00046575,2]
[343230710,1732505455466,-500.0,0.00046575,2]
[343230711,1732505455476,-262.38851002,0.00046575,2]
[343230712,1732505455485,-525.28491253,0.00046575,2]
[343230713,1732505455495,-500.0,0.00046575,2]
[343230714,1732505455504,-504.98802278,0.00046575,2]
[343230715,1732505455514,-500.0,0.00046575,2]
[343230716,1732505455524,-540.85491569,0.00046575,2]
[343230717,1732505455533,-505.19164041,0.00046575,2]
[343230718,1732505455543,-500.0,0.00046575,2]
[343230719,1732505455552,-500.0,0.00046575,2]
[343230720,1732505455562,-500.0,0.00046575,2]
[343230721,1732505455572,-2522.86,0.00046575,2]
[343230722,1732505455581,-504.11318633,0.00046575,2]
[343230723,1732505455591,-2522.86,0.00046575,2]
[343230724,1732505455600,-2522.86,0.00046575,2]
[343230725,1732505455610,-534.69335812,0.00046575,2]
[343230726,1732505455619,-2522.86,0.00046575,2]
[343230727,1732505455628,-2522.86,0.00046575,2]
[343230728,1732505455638,-500.0,0.00046575,2]
[343230729,1732505455648,-2522.86,0.00046575,2]
[343230730,1732505455657,-500.0,0.00046575,2]
[343230731,1732505455751,-2522.86,0.00046575,2]
[343230732,1732505455762,-500.0,0.00046575,2]
[343230733,1732505455772,-2522.86,0.00046575,2]
[343230734,1732505455782,-500.0,0.00046575,2]
[343230735,1732505455792,-536.20888433,0.00046575,2]
[343230736,1732505455803,-2522.86,0.00046575,2]
[343230737,1732505455813,-500.0,0.00046575,2]
[343230738,1732505455823,-530.82326483,0.00046575,2]
[343230739,1732505455833,-2522.86,0.00046575,2]
[343230740,1732505455843,-523.72019353,0.00046575,2]
[343230741,1732505455853,-2522.86,0.00046575,2]
[343230742,1732505455863,-2522.86,0.00046575,2]
[343230743,1732505455873,-2522.86,0.00046575,2]
[343230744,1732505455883,-500.0,0.00046575,2]
[343230745,1732505455893,-2522.86,0.00046575,2]
[343230746,1732505455903,-2522.86,0.00046575,2]
[343230747,1732505455913,-2522.86,0.00046575,2]
[343230748,1732505455923,-2522.86,0.00046575,2]
[343230749,1732505455935,-500.0,0.00046575,2]
[343230750,1732505455944,-500.0,0.00046575,2]
[343230751,1732505455955,-500.0,0.00046575,2]
[343230752,1732505455965,-2522.86,0.00046575,2]
[343230753,1732505455975,-500.0,0.00046575,2]
[343230754,1732505455985,-501.16320013,0.00046575,2]
[343230755,1732505455994,-520.71348313,0.00046575,2]
[343230756,1732505456004,-2522.86,0.00046575,2]
[343230757,1732505456017,-500.0,0.00046575,2]
[343230758,1732505456027,-2522.86,0.00046575,2]
[343230759,1732505456037,-500.0,0.00046575,2]
[343230760,1732505456046,-500.0,0.00046575,2]
[343230761,1732505456058,-2522.86,0.00046575,2]
[343230762,1732505456068,-500.0,0.00046575,2]
[343230763,1732505456078,-500.0,0.00046575,2]
[343230764,1732505456087,-500.0,0.00046575,2]
[343230765,1732505456099,-500.0,0.00046575,2]
[343230766,1732505456116,-2522.86,0.00046575,2]
[343230767,1732505456126,-500.0,0.00046575,2]
[343230768,1732505456135,-500.0,0.00046575,2]
[343230769,1732505456145,-2522.86,0.00046575,2]
[343230770,1732505456154,-500.0,0.00046575,2]
[343230771,1732505456164,-500.0,0.00046575,2]
[343230772,1732505456173,-518.2145323,0.00046575,2]
[343230773,1732505456185,-2522.94486409,0.00046575,2]
[343230774,1732505456195,-500.0,0.00046575,2]
[343230775,1732505456205,-500.0,0.00046575,2]
[343230776,1732505456215,-500.0,0.00046575,2]
[343230777,1732505456225,-277.82107129,0.00046575,2]
[343230778,1732505456234,-500.0,0.00046575,2]
[343230779,1732505456244,-500.0,0.00046575,2]
[343230780,1732505456254,-500.0,0.00046575,2]
[343230781,1732505456264,-500.0,0.00046575,2]
[343230782,1732505456273,-452.53773709,0.00046575,2]
[343230783,1732505456283,-500.0,0.00046575,2]
[343230784,1732505456293,-500.0,0.00046575,2]
[343230785,1732505456304,-408.19421836,0.00046575,2]
[343230786,1732505456314,-500.0,0.00046575,2]
[343230787,1732505456324,-500.0,0.00046575,2]
[343230788,1732505456333,-545.71075131,0.00046575,2]
[343230789,1732505456343,-500.0,0.00046575,2]
[343230790,1732505456353,-436.8451272,0.00046575,2]
[343230791,1732505456363,-500.0,0.00046575,2]
[343230792,1732505456373,-500.0,0.00046575,2]
[343230793,1732505456382,-500.0,0.00046575,2]
[343230794,1732505456392,-500.0,0.00046575,2]
[343230795,1732505456404,-500.0,0.00046575,2]
[343230796,1732505456423,-500.0,0.00046575,2]
[343230797,1732505456442,-466.17522698,0.00046575,2]
[343230798,1732505456459,-500.0,0.00046575,2]
[343230799,1732505456477,-500.0,0.00046575,2]
[343230800,1732505456492,-500.0,0.00046575,2]